[Event "Late-Titled-Tuesday-Blitz-January-23-2024"]
[Site "Chess.com"]
[Date "2024.01.23"]
[Round "1"]
[White "Boninknights"]
[Black "angelgab3"]
[Result "0-1"]
[WhiteElo "2363"]
[BlackElo "2672"]
[TimeControl "180+1"]
[EndTime "14:01:39 PST"]
[Termination "angelgab3 won by resignation"]

1. d4 {[%clk 0:02:58.3]} 1... Nf6 {[%clk 0:02:59.9]} 2. Nf3 {[%clk 0:02:54.8]}
2... e6 {[%clk 0:03:00.8]} 3. c4 {[%clk 0:02:53.7]} 3... d5 {[%clk 0:03:01.7]}
4. g3 {[%clk 0:02:52.7]} 4... dxc4 {[%clk 0:03:01.4]} 5. Qa4+ {[%clk 0:02:51.1]}
5... Nbd7 {[%clk 0:03:00.8]} 6. Bg2 {[%clk 0:02:49.5]} 6... a6 {[%clk
0:03:01.1]} 7. Qxc4 {[%clk 0:02:48.8]} 7... b5 {[%clk 0:03:01.5]} 8. Qc6 {[%clk
0:02:47.2]} 8... Ra7 {[%clk 0:03:01.9]} 9. Bg5 {[%clk 0:02:44.1]} 9... Bb7
{[%clk 0:03:02.8]} 10. Bxf6 {[%clk 0:02:43.3]} 10... Qxf6 {[%clk 0:02:41.7]} 11.
Qxc7 {[%clk 0:02:38.6]} 11... Bb4+ {[%clk 0:02:42.4]} 12. Nbd2 {[%clk
0:02:37.3]} 12... Bxf3 {[%clk 0:02:42.6]} 13. Qxa7 {[%clk 0:02:26.7]} 13... Bxg2
{[%clk 0:02:42.6]} 14. Qa8+ {[%clk 0:02:24.2]} 14... Bxa8 {[%clk 0:02:42.3]} 0-1

[Event "Late-Titled-Tuesday-Blitz-January-23-2024"]
[Site "Chess.com"]
[Date "2024.01.23"]
[Round "1"]
[White "Rawnsdale"]
[Black "Fernando_Offermann"]
[Result "1-0"]
[WhiteElo "2553"]
[BlackElo "2028"]
[TimeControl "180+1"]
[EndTime "14:01:51 PST"]
[Termination "Rawnsdale won by resignation"]

1. e4 {[%clk 0:03:00.9]} 1... e5 {[%clk 0:02:59.3]} 2. Nf3 {[%clk 0:03:01.2]}
2... Nc6 {[%clk 0:02:59.1]} 3. Bb5 {[%clk 0:03:01.9]} 3... a6 {[%clk 0:02:58.3]}
4. Ba4 {[%clk 0:03:02.1]} 4... Nf6 {[%clk 0:02:57.8]} 5. O-O {[%clk 0:03:02.2]}
5... d6 {[%clk 0:02:57.6]} 6. Re1 {[%clk 0:02:58.8]} 6... Bd7 {[%clk 0:02:57]}
7. c3 {[%clk 0:02:58.4]} 7... g6 {[%clk 0:02:56.5]} 8. d4 {[%clk 0:02:57.5]}
8... Bg7 {[%clk 0:02:56.3]} 9. Nbd2 {[%clk 0:02:55.3]} 9... O-O {[%clk
0:02:55.8]} 10. Nf1 {[%clk 0:02:55.3]} 10... b5 {[%clk 0:02:53.1]} 11. Bc2
{[%clk 0:02:53.4]} 11... exd4 {[%clk 0:02:52.3]} 12. cxd4 {[%clk 0:02:53.2]}
12... Nb4 {[%clk 0:02:52.2]} 13. Bb1 {[%clk 0:02:47.8]} 13... c5 {[%clk
0:02:51.9]} 14. a3 {[%clk 0:02:47.9]} 14... Nc6 {[%clk 0:02:48.1]} 15. d5 {[%clk
0:02:42.4]} 15... Nd4 {[%clk 0:02:40]} 16. Nxd4 {[%clk 0:02:39.6]} 16... cxd4
{[%clk 0:02:40.1]} 17. Qxd4 {[%clk 0:02:32.2]} 17... Nxe4 {[%clk 0:02:39.7]} 18.
Qxe4 {[%clk 0:02:28.3]} 18... Re8 {[%clk 0:02:39.6]} 19. Qb4 {[%clk 0:02:27.4]}
1-0

[Event "Late-Titled-Tuesday-Blitz-January-23-2024"]
[Site "Chess.com"]
[Date "2024.01.23"]
[Round "1"]
[White "Elsa167"]
[Black "Hananmo"]
[Result "1-0"]
[WhiteElo "2947"]
[BlackElo "2501"]
[TimeControl "180+1"]
[EndTime "14:02:06 PST"]
[Termination "Elsa167 won by resignation"]

1. d4 {[%clk 0:02:58.9]} 1... Nf6 {[%clk 0:02:59.1]} 2. c4 {[%clk 0:02:58.2]}
2... g6 {[%clk 0:02:59.6]} 3. Nc3 {[%clk 0:02:58.1]} 3... Bg7 {[%clk 0:03:00.5]}
4. e4 {[%clk 0:02:58.3]} 4... d6 {[%clk 0:03:00.1]} 5. h3 {[%clk 0:02:58.6]}
5... O-O {[%clk 0:03:00.5]} 6. Be3 {[%clk 0:02:58.7]} 6... e5 {[%clk 0:03:00.3]}
7. d5 {[%clk 0:02:58.6]} 7... a5 {[%clk 0:03:00.2]} 8. g4 {[%clk 0:02:59]} 8...
Na6 {[%clk 0:03:00]} 9. Nge2 {[%clk 0:02:59.6]} 9... c6 {[%clk 0:02:58.2]} 10.
Ng3 {[%clk 0:02:59.5]} 10... cxd5 {[%clk 0:02:53.8]} 11. cxd5 {[%clk 0:03:00.4]}
11... Nc5 {[%clk 0:02:52.5]} 12. Qd2 {[%clk 0:02:58.2]} 12... a4 {[%clk
0:02:51]} 13. f3 {[%clk 0:02:56.6]} 13... Qa5 {[%clk 0:02:46]} 14. Nb5 {[%clk
0:02:45.4]} 14... Qb6 {[%clk 0:02:41]} 15. Rc1 {[%clk 0:02:44.5]} 15... Bd7
{[%clk 0:02:39.9]} 16. Nxd6 {[%clk 0:02:38.6]} 16... Ra5 {[%clk 0:02:23.2]} 17.
Nc4 {[%clk 0:02:37.6]} 1-0

[Event "Late-Titled-Tuesday-Blitz-January-23-2024"]
[Site "Chess.com"]
[Date "2024.01.23"]
[Round "1"]
[White "katharinareinecke"]
[Black "crazyluzhinTh3"]
[Result "0-1"]
[WhiteElo "2014"]
[BlackElo "2549"]
[TimeControl "180+1"]
[EndTime "14:02:49 PST"]
[Termination "crazyluzhinTh3 won by resignation"]

1. d4 {[%clk 0:02:58.8]} 1... d6 {[%clk 0:03:00.2]} 2. c4 {[%clk 0:02:50.5]}
2... e5 {[%clk 0:02:58.9]} 3. dxe5 {[%clk 0:02:47.1]} 3... dxe5 {[%clk
0:02:59.8]} 4. Qxd8+ {[%clk 0:02:47]} 4... Kxd8 {[%clk 0:03:00.7]} 5. e4 {[%clk
0:02:42.4]} 5... Be6 {[%clk 0:03:01.1]} 6. Nc3 {[%clk 0:02:39.2]} 6... Nd7
{[%clk 0:02:59.8]} 7. b3 {[%clk 0:02:36.8]} 7... c6 {[%clk 0:02:59.6]} 8. Bb2
{[%clk 0:02:36.6]} 8... Kc7 {[%clk 0:03:00.1]} 9. O-O-O {[%clk 0:02:32.9]} 9...
f6 {[%clk 0:03:00.5]} 10. Nge2 {[%clk 0:02:28.5]} 10... Nh6 {[%clk 0:02:59.1]}
11. f3 {[%clk 0:02:24.4]} 11... a5 {[%clk 0:02:58.6]} 12. g4 {[%clk 0:02:09.6]}
12... Nf7 {[%clk 0:02:57.9]} 13. h4 {[%clk 0:02:08.4]} 13... h5 {[%clk
0:02:58.3]} 14. Bh3 {[%clk 0:01:58.7]} 14... Nc5 {[%clk 0:02:53.9]} 15. gxh5
{[%clk 0:01:42.8]} 15... Bxh3 {[%clk 0:02:51.5]} 16. Rxh3 {[%clk 0:01:41.6]}
16... Rxh5 {[%clk 0:02:52.4]} 17. Ng3 {[%clk 0:01:38.3]} 17... Rh7 {[%clk
0:02:52.6]} 18. Nf5 {[%clk 0:01:36.1]} 18... g6 {[%clk 0:02:43.1]} 19. Ne3
{[%clk 0:01:32.5]} 19... Bh6 {[%clk 0:02:43.4]} 20. Re1 {[%clk 0:01:24.7]} 20...
Nd3+ {[%clk 0:02:42.7]} 0-1

[Event "Late-Titled-Tuesday-Blitz-January-23-2024"]
[Site "Chess.com"]
[Date "2024.01.23"]
[Round "1"]
[White "baag"]
[Black "wild3000"]
[Result "1-0"]
[WhiteElo "2852"]
[BlackElo "2458"]
[TimeControl "180+1"]
[EndTime "14:02:52 PST"]
[Termination "baag won by resignation"]

1. d4 {[%clk 0:03:00.9]} 1... Nf6 {[%clk 0:02:59.6]} 2. c4 {[%clk 0:03:00.8]}
2... e6 {[%clk 0:02:59.6]} 3. Nc3 {[%clk 0:02:57.3]} 3... d5 {[%clk 0:02:58.2]}
4. cxd5 {[%clk 0:02:57.9]} 4... exd5 {[%clk 0:02:58.1]} 5. Bg5 {[%clk
0:02:58.6]} 5... Be7 {[%clk 0:02:57.9]} 6. e3 {[%clk 0:02:59.2]} 6... O-O {[%clk
0:02:57.7]} 7. Bd3 {[%clk 0:02:59.9]} 7... c6 {[%clk 0:02:57.4]} 8. Qc2 {[%clk
0:02:59.9]} 8... Nbd7 {[%clk 0:02:56]} 9. Nf3 {[%clk 0:02:57.9]} 9... Re8 {[%clk
0:02:53.6]} 10. O-O {[%clk 0:02:56.6]} 10... h6 {[%clk 0:02:53.5]} 11. Bf4
{[%clk 0:02:57]} 11... b6 {[%clk 0:02:29.1]} 12. Nb5 {[%clk 0:02:48.1]} 12...
Bb7 {[%clk 0:02:19.2]} 13. Nc7 {[%clk 0:02:46.8]} 13... Nh5 {[%clk 0:02:11.1]}
14. Nxe8 {[%clk 0:02:38.8]} 14... Nxf4 {[%clk 0:02:07.8]} 15. exf4 {[%clk
0:02:36.8]} 15... Qxe8 {[%clk 0:02:07.4]} 16. Rfe1 {[%clk 0:02:37.5]} 16... Qd8
{[%clk 0:02:00.1]} 17. Ne5 {[%clk 0:02:30.7]} 17... Rc8 {[%clk 0:01:57.7]} 18.
Nxd7 {[%clk 0:02:29.6]} 18... Qxd7 {[%clk 0:01:57.6]} 19. Bf5 {[%clk 0:02:30.3]}
19... Qd8 {[%clk 0:01:57]} 20. Bxc8 {[%clk 0:02:30.4]} 20... Bxc8 {[%clk
0:01:53]} 21. Qxc6 {[%clk 0:02:30.9]} 21... Be6 {[%clk 0:01:48.6]} 22. Rac1
{[%clk 0:02:27.9]} 22... g6 {[%clk 0:01:46.6]} 23. Rxe6 {[%clk 0:02:28.2]} 23...
fxe6 {[%clk 0:01:45.5]} 24. Qxe6+ {[%clk 0:02:29.1]} 1-0

[Event "Late-Titled-Tuesday-Blitz-January-23-2024"]
[Site "Chess.com"]
[Date "2024.01.23"]
[Round "1"]
[White "GrotBchess"]
[Black "CamillaEffect"]
[Result "1-0"]
[WhiteElo "2310"]
[BlackElo "2589"]
[TimeControl "180+1"]
[EndTime "14:02:52 PST"]
[Termination "GrotBchess won by resignation"]

1. e4 {[%clk 0:03:00.9]} 1... e5 {[%clk 0:02:59.2]} 2. Nf3 {[%clk 0:03:01]} 2...
Nc6 {[%clk 0:02:58.7]} 3. Bb5 {[%clk 0:03:01.6]} 3... f5 {[%clk 0:02:58.6]} 4.
d3 {[%clk 0:03:01.2]} 4... fxe4 {[%clk 0:02:59]} 5. dxe4 {[%clk 0:03:02.1]} 5...
Nf6 {[%clk 0:02:59]} 6. Nc3 {[%clk 0:03:00.5]} 6... Bb4 {[%clk 0:02:58.9]} 7.
Qd3 {[%clk 0:02:55.4]} 7... Bxc3+ {[%clk 0:02:57.5]} 8. bxc3 {[%clk 0:02:52.1]}
8... d6 {[%clk 0:02:55.4]} 9. Qc4 {[%clk 0:02:44.2]} 9... Bd7 {[%clk 0:02:53]}
10. O-O {[%clk 0:02:43.9]} 10... a6 {[%clk 0:02:52]} 11. Bxc6 {[%clk 0:02:42.1]}
11... Bxc6 {[%clk 0:02:52.9]} 12. Re1 {[%clk 0:02:27.6]} 12... Nxe4 {[%clk
0:02:52.1]} 13. Rxe4 {[%clk 0:02:25.1]} 13... Bxe4 {[%clk 0:02:48.3]} 14. Qxe4
{[%clk 0:02:26]} 14... O-O {[%clk 0:02:47.3]} 15. Qxb7 {[%clk 0:02:20.8]} 15...
Qf6 {[%clk 0:02:25.6]} 16. Be3 {[%clk 0:02:13]} 16... Qf5 {[%clk 0:02:16.2]} 17.
Qxc7 {[%clk 0:02:03]} 17... Qxc2 {[%clk 0:02:14.7]} 18. Qxd6 {[%clk 0:02:00.4]}
18... e4 {[%clk 0:02:14.4]} 19. Ng5 {[%clk 0:01:54.2]} 19... Qxc3 {[%clk
0:02:14.9]} 20. Qd5+ {[%clk 0:01:46.4]} 20... Kh8 {[%clk 0:02:14.8]} 21. Nf7+
{[%clk 0:01:46.4]} 1-0

[Event "Late-Titled-Tuesday-Blitz-January-23-2024"]
[Site "Chess.com"]
[Date "2024.01.23"]
[Round "1"]
[White "Jesusesmifuerza"]
[Black "DrCeltic"]
[Result "0-1"]
[WhiteElo "2287"]
[BlackElo "2602"]
[TimeControl "180+1"]
[EndTime "14:03:06 PST"]
[Termination "DrCeltic won by resignation"]

1. e4 {[%clk 0:02:59.6]} 1... c5 {[%clk 0:02:59.8]} 2. Nf3 {[%clk 0:02:58.3]}
2... e6 {[%clk 0:03:00.2]} 3. d4 {[%clk 0:02:59]} 3... cxd4 {[%clk 0:03:01.1]}
4. Nxd4 {[%clk 0:02:59.9]} 4... Nf6 {[%clk 0:03:01.6]} 5. Nc3 {[%clk 0:03:00.1]}
5... d6 {[%clk 0:03:02]} 6. Bc4 {[%clk 0:02:59.6]} 6... Be7 {[%clk 0:03:01.6]}
7. O-O {[%clk 0:02:59]} 7... O-O {[%clk 0:03:01.3]} 8. Re1 {[%clk 0:02:58.3]}
8... a6 {[%clk 0:03:00.4]} 9. Be3 {[%clk 0:02:56.6]} 9... b5 {[%clk 0:02:56.9]}
10. Bb3 {[%clk 0:02:56.4]} 10... b4 {[%clk 0:02:57.1]} 11. Na4 {[%clk
0:02:48.8]} 11... Nxe4 {[%clk 0:02:56.3]} 12. Nxe6 {[%clk 0:02:17.1]} 12... Bxe6
{[%clk 0:02:55]} 13. Bb6 {[%clk 0:02:16.6]} 13... Qd7 {[%clk 0:02:21.7]} 14.
Rxe4 {[%clk 0:02:08.7]} 14... d5 {[%clk 0:01:58.7]} 15. Re1 {[%clk 0:01:53.8]}
15... Qb5 {[%clk 0:01:57]} 16. Bd4 {[%clk 0:01:46.7]} 16... Nd7 {[%clk
0:01:56.9]} 0-1

[Event "Late-Titled-Tuesday-Blitz-January-23-2024"]
[Site "Chess.com"]
[Date "2024.01.23"]
[Round "1"]
[White "Kamilek84"]
[Black "AC_20"]
[Result "1-0"]
[WhiteElo "2689"]
[BlackElo "2376"]
[TimeControl "180+1"]
[EndTime "14:03:08 PST"]
[Termination "Kamilek84 won by resignation"]

1. d4 {[%clk 0:03:00.9]} 1... d5 {[%clk 0:02:53.9]} 2. c4 {[%clk 0:03:00.4]}
2... e6 {[%clk 0:02:54.1]} 3. Nf3 {[%clk 0:02:56.2]} 3... Nf6 {[%clk 0:02:53.6]}
4. g3 {[%clk 0:02:56]} 4... Bb4+ {[%clk 0:02:51.5]} 5. Bd2 {[%clk 0:02:54.2]}
5... Be7 {[%clk 0:02:52.1]} 6. Bg2 {[%clk 0:02:53.1]} 6... O-O {[%clk
0:02:51.6]} 7. O-O {[%clk 0:02:52]} 7... c6 {[%clk 0:02:46.8]} 8. Qb3 {[%clk
0:02:51.2]} 8... Nbd7 {[%clk 0:02:41.2]} 9. Rc1 {[%clk 0:02:49.3]} 9... Ne4
{[%clk 0:02:39.7]} 10. Be1 {[%clk 0:02:47.2]} 10... f5 {[%clk 0:02:30.9]} 11.
Bb4 {[%clk 0:02:41.7]} 11... a5 {[%clk 0:02:13.6]} 12. Bxe7 {[%clk 0:02:40.3]}
12... Qxe7 {[%clk 0:02:14.5]} 13. Nc3 {[%clk 0:02:37.9]} 13... Ndf6 {[%clk
0:02:12.3]} 14. Ne5 {[%clk 0:02:36.6]} 14... Kh8 {[%clk 0:02:06.2]} 15. f3
{[%clk 0:02:29.4]} 15... Nxc3 {[%clk 0:02:06.4]} 16. Qxc3 {[%clk 0:02:28.9]}
16... Qb4 {[%clk 0:02:04.5]} 17. c5 {[%clk 0:02:24.1]} 17... Qxc3 {[%clk
0:02:04]} 18. bxc3 {[%clk 0:02:23.3]} 18... Nd7 {[%clk 0:02:04.4]} 19. Nd3
{[%clk 0:02:18.2]} 19... Re8 {[%clk 0:02:03.8]} 20. f4 {[%clk 0:02:14.2]} 20...
b5 {[%clk 0:02:02.3]} 21. cxb6 {[%clk 0:02:01.9]} 21... Nxb6 {[%clk 0:02:02.6]}
22. Ne5 {[%clk 0:02:00.7]} 22... Nc4 {[%clk 0:01:51.5]} 23. Nxc4 {[%clk
0:01:59.5]} 1-0

[Event "Late-Titled-Tuesday-Blitz-January-23-2024"]
[Site "Chess.com"]
[Date "2024.01.23"]
[Round "1"]
[White "MokshanovAlexey"]
[Black "Roedor"]
[Result "1-0"]
[WhiteElo "2628"]
[BlackElo "2315"]
[TimeControl "180+1"]
[EndTime "14:03:38 PST"]
[Termination "MokshanovAlexey won by checkmate"]

1. e4 {[%clk 0:03:00.9]} 1... e5 {[%clk 0:02:56.7]} 2. Nf3 {[%clk 0:02:59.2]}
2... Nc6 {[%clk 0:02:57]} 3. d4 {[%clk 0:02:59.7]} 3... exd4 {[%clk 0:02:57.1]}
4. Nxd4 {[%clk 0:03:00.6]} 4... Nf6 {[%clk 0:02:57.4]} 5. Nxc6 {[%clk
0:02:59.7]} 5... bxc6 {[%clk 0:02:58.3]} 6. e5 {[%clk 0:02:59.9]} 6... Qe7
{[%clk 0:02:58.5]} 7. Qe2 {[%clk 0:03:00.5]} 7... Nd5 {[%clk 0:02:58.5]} 8. c4
{[%clk 0:03:01.1]} 8... Ba6 {[%clk 0:02:58.6]} 9. b3 {[%clk 0:03:00.9]} 9... g6
{[%clk 0:02:58.5]} 10. g3 {[%clk 0:03:01.4]} 10... Bg7 {[%clk 0:02:58.7]} 11.
Bb2 {[%clk 0:03:02]} 11... O-O {[%clk 0:02:59]} 12. Bg2 {[%clk 0:03:02.6]} 12...
Rae8 {[%clk 0:02:56.5]} 13. O-O {[%clk 0:03:03.1]} 13... Bxe5 {[%clk 0:02:56.6]}
14. Qxe5 {[%clk 0:03:03.3]} 14... Qxe5 {[%clk 0:02:56.9]} 15. Bxe5 {[%clk
0:03:04.1]} 15... Rxe5 {[%clk 0:02:57.5]} 16. cxd5 {[%clk 0:03:04.7]} 16... Bxf1
{[%clk 0:02:57.9]} 17. Kxf1 {[%clk 0:03:05.1]} 17... cxd5 {[%clk 0:02:58.2]} 18.
Nd2 {[%clk 0:03:02.6]} 18... c6 {[%clk 0:02:55.4]} 19. Rd1 {[%clk 0:02:57]}
19... Rb8 {[%clk 0:02:49.3]} 20. Nf3 {[%clk 0:02:56.7]} 20... Re7 {[%clk
0:02:47.1]} 21. Rd4 {[%clk 0:02:55.3]} 21... Kf8 {[%clk 0:02:44.4]} 22. Ra4
{[%clk 0:02:54.4]} 22... Rb7 {[%clk 0:02:44.7]} 23. Ne1 {[%clk 0:02:49.7]} 23...
Re8 {[%clk 0:02:16.6]} 24. Nd3 {[%clk 0:02:48.7]} 24... Ra8 {[%clk 0:02:17.2]}
25. Nc5 {[%clk 0:02:46.9]} 25... Rc7 {[%clk 0:02:17.6]} 26. Ra6 {[%clk
0:02:44.5]} 26... Ke7 {[%clk 0:02:14]} 27. b4 {[%clk 0:02:43.8]} 27... Rb8
{[%clk 0:02:08]} 28. a3 {[%clk 0:02:41.4]} 28... f5 {[%clk 0:01:55.1]} 29. Ra5
{[%clk 0:02:40.9]} 29... Rb6 {[%clk 0:01:43]} 30. Ke2 {[%clk 0:02:39.1]} 30...
Kd6 {[%clk 0:01:41.5]} 31. Kd2 {[%clk 0:02:38.2]} 31... Rc8 {[%clk 0:01:38.9]}
32. Rxa7 {[%clk 0:02:37.4]} 32... Rc7 {[%clk 0:01:36.8]} 33. Ra8 {[%clk
0:02:35.5]} 33... Ke5 {[%clk 0:01:33.9]} 34. f4+ {[%clk 0:02:29.4]} 34... Kd4
{[%clk 0:01:32.1]} 35. Bf1 {[%clk 0:02:26.7]} 35... d6 {[%clk 0:01:29.3]} 36.
Nb3+ {[%clk 0:02:26.7]} 36... Ke4 {[%clk 0:01:28.9]} 37. Bg2# {[%clk 0:02:27.3]}
1-0

[Event "Late-Titled-Tuesday-Blitz-January-23-2024"]
[Site "Chess.com"]
[Date "2024.01.23"]
[Round "1"]
[White "stoleriu"]
[Black "ritanovikova"]
[Result "1-0"]
[WhiteElo "2566"]
[BlackElo "2170"]
[TimeControl "180+1"]
[EndTime "14:04:10 PST"]
[Termination "stoleriu won by resignation"]

1. e4 {[%clk 0:02:56.7]} 1... e5 {[%clk 0:02:59.4]} 2. Nf3 {[%clk 0:02:55.9]}
2... Nf6 {[%clk 0:02:58.4]} 3. Nxe5 {[%clk 0:02:53.6]} 3... Nxe4 {[%clk
0:02:58.4]} 4. Qe2 {[%clk 0:02:53.6]} 4... Qe7 {[%clk 0:02:46.2]} 5. Qxe4 {[%clk
0:02:49.2]} 5... d6 {[%clk 0:02:46.2]} 6. d4 {[%clk 0:02:49.7]} 6... dxe5 {[%clk
0:02:43.5]} 7. dxe5 {[%clk 0:02:47.8]} 7... Nc6 {[%clk 0:02:40.5]} 8. Bf4 {[%clk
0:02:47.4]} 8... g6 {[%clk 0:02:38.1]} 9. Bb5 {[%clk 0:02:46.8]} 9... Bd7 {[%clk
0:02:37.4]} 10. O-O {[%clk 0:02:47.1]} 10... Bg7 {[%clk 0:02:36.8]} 11. Re1
{[%clk 0:02:46.8]} 11... O-O {[%clk 0:02:36.2]} 12. Nc3 {[%clk 0:02:47]} 12...
Rfe8 {[%clk 0:02:30.9]} 13. Nd5 {[%clk 0:02:46.5]} 13... Qd8 {[%clk 0:02:27.3]}
14. Rad1 {[%clk 0:02:44.1]} 14... Qc8 {[%clk 0:02:20.7]} 15. Bg5 {[%clk
0:02:21.6]} 15... Nxe5 {[%clk 0:02:17.7]} 16. Bxd7 {[%clk 0:02:07.2]} 16... Nxd7
{[%clk 0:02:15.1]} 17. Ne7+ {[%clk 0:01:57.3]} 17... Rxe7 {[%clk 0:02:12.2]} 18.
Qxe7 {[%clk 0:01:58.2]} 18... Nb6 {[%clk 0:02:09]} 19. c3 {[%clk 0:01:52.6]}
19... Bf8 {[%clk 0:02:05.2]} 20. Rd8 {[%clk 0:01:37.2]} 20... Qxd8 {[%clk
0:01:47.2]} 21. Qxd8 {[%clk 0:01:38.1]} 21... Rxd8 {[%clk 0:01:47.2]} 22. Bxd8
{[%clk 0:01:39]} 22... c6 {[%clk 0:01:46.8]} 23. Bxb6 {[%clk 0:01:38.8]} 23...
axb6 {[%clk 0:01:44.5]} 24. Re8 {[%clk 0:01:39.7]} 24... Kg7 {[%clk 0:01:43.9]}
25. Rb8 {[%clk 0:01:40.6]} 25... Bc5 {[%clk 0:01:39.8]} 26. Rxb7 {[%clk
0:01:41.5]} 26... Kf6 {[%clk 0:01:31.9]} 27. b4 {[%clk 0:01:40.5]} 27... Bd6
{[%clk 0:01:31.4]} 28. Rxb6 {[%clk 0:01:41]} 1-0

[Event "Late-Titled-Tuesday-Blitz-January-23-2024"]
[Site "Chess.com"]
[Date "2024.01.23"]
[Round "1"]
[White "Kazan28"]
[Black "Josgar05"]
[Result "1/2-1/2"]
[WhiteElo "2616"]
[BlackElo "2323"]
[TimeControl "180+1"]
[EndTime "14:04:11 PST"]
[Termination "Game drawn by repetition"]

1. d4 {[%clk 0:02:48.8]} 1... d5 {[%clk 0:02:55.3]} 2. c4 {[%clk 0:02:25.3]}
2... c6 {[%clk 0:02:55]} 3. cxd5 {[%clk 0:02:20.9]} 3... cxd5 {[%clk 0:02:53.5]}
4. Bf4 {[%clk 0:02:21.3]} 4... Nc6 {[%clk 0:02:51.9]} 5. e3 {[%clk 0:02:21.3]}
5... Nf6 {[%clk 0:02:50.9]} 6. Nc3 {[%clk 0:02:21.4]} 6... a6 {[%clk 0:02:44.2]}
7. Be2 {[%clk 0:02:16.2]} 7... Bf5 {[%clk 0:02:43.9]} 8. Nf3 {[%clk 0:02:16]}
8... e6 {[%clk 0:02:42.9]} 9. O-O {[%clk 0:02:10.6]} 9... Bd6 {[%clk 0:02:41.7]}
10. Bxd6 {[%clk 0:02:07.5]} 10... Qxd6 {[%clk 0:02:42.6]} 11. Rc1 {[%clk
0:02:07.8]} 11... h6 {[%clk 0:02:40.8]} 12. Na4 {[%clk 0:02:08.2]} 12... O-O
{[%clk 0:02:38.5]} 13. Nc5 {[%clk 0:02:08]} 13... Rab8 {[%clk 0:02:35.6]} 14.
Qa4 {[%clk 0:02:06.2]} 14... Rfc8 {[%clk 0:02:26.6]} 15. a3 {[%clk 0:02:04.4]}
15... Ne4 {[%clk 0:02:26.3]} 16. Nxe4 {[%clk 0:02:02.5]} 16... dxe4 {[%clk
0:02:22.1]} 17. Nd2 {[%clk 0:02:01.4]} 17... e5 {[%clk 0:02:19.4]} 18. Nc4
{[%clk 0:01:58.9]} 18... Qe7 {[%clk 0:02:17.1]} 19. Nxe5 {[%clk 0:01:57.2]}
19... Nxe5 {[%clk 0:02:16.5]} 20. dxe5 {[%clk 0:01:58.1]} 20... Qxe5 {[%clk
0:02:16.3]} 21. Qb3 {[%clk 0:01:54.7]} 21... b5 {[%clk 0:02:08.7]} 22. h3 {[%clk
0:01:54.5]} 22... Be6 {[%clk 0:02:08.4]} 23. Qb4 {[%clk 0:01:53]} 23... Kh7
{[%clk 0:02:02.8]} 24. Rfd1 {[%clk 0:01:49.2]} 24... g6 {[%clk 0:01:49.6]} 25.
Bf1 {[%clk 0:01:45.8]} 25... h5 {[%clk 0:01:49.6]} 26. Be2 {[%clk 0:01:45.6]}
26... Bf5 {[%clk 0:01:25.4]} 27. Bf1 {[%clk 0:01:44.6]} 27... Be6 {[%clk
0:01:25.4]} 28. Be2 {[%clk 0:01:44.5]} 28... Bf5 {[%clk 0:01:25.8]} 29. Bf1
{[%clk 0:01:44.6]} 29... Be6 {[%clk 0:01:26.2]} 1/2-1/2

[Event "Late-Titled-Tuesday-Blitz-January-23-2024"]
[Site "Chess.com"]
[Date "2024.01.23"]
[Round "1"]
[White "MightyGMpretender"]
[Black "Cheer_Down"]
[Result "1-0"]
[WhiteElo "2758"]
[BlackElo "2429"]
[TimeControl "180+1"]
[EndTime "14:04:13 PST"]
[Termination "MightyGMpretender won by resignation"]

1. d4 {[%clk 0:02:59.3]} 1... Nf6 {[%clk 0:02:57.8]} 2. c4 {[%clk 0:02:59.8]}
2... e6 {[%clk 0:02:57.3]} 3. Nc3 {[%clk 0:03:00.5]} 3... Bb4 {[%clk 0:02:57]}
4. f3 {[%clk 0:03:00.6]} 4... d5 {[%clk 0:02:55.3]} 5. a3 {[%clk 0:03:00]} 5...
Bxc3+ {[%clk 0:02:55]} 6. bxc3 {[%clk 0:03:00.8]} 6... c5 {[%clk 0:02:55.3]} 7.
cxd5 {[%clk 0:03:01.3]} 7... Nxd5 {[%clk 0:02:52.9]} 8. dxc5 {[%clk 0:02:53]}
8... f5 {[%clk 0:02:53.1]} 9. Nh3 {[%clk 0:02:30.3]} 9... O-O {[%clk 0:02:45.4]}
10. Nf4 {[%clk 0:01:55.2]} 10... Nxf4 {[%clk 0:02:44.5]} 11. Bxf4 {[%clk
0:01:52]} 11... Qa5 {[%clk 0:02:40.7]} 12. Bd6 {[%clk 0:01:47.6]} 12... Qxc3+
{[%clk 0:02:39.6]} 13. Kf2 {[%clk 0:01:46.6]} 13... f4 {[%clk 0:02:24.4]} 14. g3
{[%clk 0:01:31.4]} 14... Rf5 {[%clk 0:01:23.9]} 15. Bxf4 {[%clk 0:01:21.5]}
15... Nd7 {[%clk 0:01:19.4]} 16. Bh3 {[%clk 0:01:19.4]} 16... Rd5 {[%clk
0:01:18.2]} 17. Bxe6+ {[%clk 0:01:18.8]} 1-0